bitfinex-derivatives/quotes_SOLF0:USTF0_20230102
["timestamp","ask_amount","ask_price","bid_price","bid_amount"]
[1672647119865,56.3847,11.216,11.204,0.00201705]
[1672647120068,5.0,11.215,11.204,0.00201705]
[1672647120283,56.3847,11.215,11.202,0.00201705]
[1672647120491,13.42,11.211,11.202,0.00201705]
[1672647120704,5.0,11.215,11.201,50.0]
[1672647120914,5.0,11.216,11.201,50.0]
[1672647121123,5.0,11.216,11.202,5.00201705]
[1672647121329,5.0,11.216,11.203,5.0]
[1672647121544,56.3847,11.217,11.203,5.0]
[1672647121758,56.3847,11.217,11.204,0.00201705]
[1672647122590,5.0,11.223,11.204,0.00201705]
[1672647122591,18.44,11.228,11.209,13.37]
[1672647122806,54.2328,11.225,11.209,13.37]
[1672647123018,54.2328,11.225,11.21,5.00201705]
[1672647123539,54.2328,11.225,11.211,0.00201705]
[1672647123957,5.0,11.224,11.211,50.00201705]
[1672647124280,5.0,11.228,11.212,18.41]
[1672647124592,5.0,11.228,11.213,5.0]
[1672647124804,5.0,11.228,11.213,5.00201705]
[1672647125114,18.41,11.232,11.214,5.0]
[1672647125325,5.0,11.232,11.215,13.41]
[1672647125536,5.0,11.232,11.216,5.0]
[1672647125749,5.0,11.232,11.216,5.00201705]
[1672647126169,5.0,11.232,11.217,0.00201705]
[1672647126484,49.2328,11.234,11.219,5.0]
[1672647127215,5.0,11.233,11.22,0.00201705]
[1672647127737,5.0,11.236,11.221,63.41]
[1672647127947,66.8334,11.24,11.222,5.0]
[1672647128369,5.0,11.239,11.222,5.0]
[1672647128585,5.0,11.239,11.223,0.00201705]
[1672647128794,5.0,11.239,11.224,13.41]
[1672647129006,5.0,11.239,11.225,5.0]
[1672647129322,5.0,11.239,11.226,0.00201705]
[1672647129528,55.5817,11.239,11.226,0.00201705]
[1672647131104,55.5817,11.239,11.225,0.00201705]
[1672647131318,13.41,11.237,11.225,0.00201705]
[1672647131738,5.0,11.236,11.219,0.00201705]
[1672647131963,13.41,11.234,11.219,0.00201705]
[1672647132159,5.0,11.232,11.219,0.00201705]
[1672647132367,49.207,11.231,11.219,0.00201705]
[1672647132580,5.0,11.23,11.218,0.00201705]
[1672647132785,5.0,11.233,11.219,5.0]
[1672647133000,5.0,11.234,11.222,5.0]
[1672647133421,49.207,11.235,11.222,5.0]
[1672647133627,18.41,11.243,11.234,0.08165563]
[1672647133842,5.0,11.24,11.234,0.08165563]
[1672647134473,5.0,11.238,11.234,0.08165563]
[1672647135736,49.207,11.239,11.234,0.08165563]
[1672647137514,5.0,11.246,11.234,0.08165563]
[1672647137515,18.41,11.246,11.234,0.08165563]
[1672647137729,49.5795,11.244,11.234,0.08165563]
[1672647138570,5.0,11.251,11.244,0.23403366]
[1672647138781,5.0,11.249,11.244,0.23403366]
[1672647139729,5.0,11.249,11.244,0.00403366]
[1672647139730,18.41,11.249,11.244,0.00403366]
[1672647140459,5.0,11.247,11.244,0.00403366]
[1672647140781,5.0,11.245,11.244,0.00403366]
[1672647141304,51.1148,11.246,11.244,0.00403366]
[1672647142355,5.0,11.245,11.244,0.00403366]
[1672647142565,51.1148,11.246,11.244,0.00403366]
[1672647143195,5.0,11.245,11.234,0.08165563]
[1672647144457,5.0,11.248,11.234,0.08165563]
[1672647146032,13.35,11.249,11.234,0.08165563]
[1672647146243,5.0,11.254,11.234,0.08165563]
[1672647146244,13.41,11.251,11.234,0.08165563]
[1672647146453,5.0,11.25,11.234,5.08165563]
[1672647146664,5.0,11.25,11.234,8.3492742]
[1672647147192,13.41,11.245,11.235,3.26761857]
[1672647147509,5.0,11.244,11.234,0.08165563]
[1672647148558,5.0,11.242,11.234,0.08165563]
[1672647149186,5.0,11.24,11.234,0.08165563]
[1672647149608,53.4512,11.241,11.234,0.08165563]
[1672647149814,5.0,11.24,11.234,0.08165563]
[1672647150234,53.4512,11.241,11.234,0.08165563]
[1672647150445,5.0,11.24,11.234,0.08165563]
[1672647150659,58.0818,11.24,11.234,0.08165563]
[1672647150869,5.0,11.239,11.234,0.08165563]
[1672647151082,5.0,11.24,11.234,0.08165563]
[1672647151293,5.0,11.242,11.234,0.08165563]
[1672647151921,53.0818,11.243,11.234,0.08165563]
[1672647152132,58.0818,11.242,11.234,0.08165563]
[1672647152334,5.0,11.241,11.234,0.08165563]
[1672647152548,53.0818,11.24,11.234,0.08165563]
[1672647152860,5.0,11.239,11.234,0.08165563]
[1672647153069,13.39,11.236,11.217,5.0]
[1672647153281,5.0,11.235,11.217,18.41]
[1672647153489,5.0,11.235,11.218,8.27130977]
[1672647153914,5.0,11.235,11.219,3.27130977]
[1672647154337,5.0,11.235,11.22,5.0]
[1672647154960,5.0,11.235,11.221,3.27130977]
[1672647156333,13.39,11.236,11.221,3.27130977]
[1672647156538,13.41,11.226,11.204,13.41]
[1672647156750,13.41,11.226,11.21,5.0]
[1672647156751,5.0,11.225,11.21,5.0]
[1672647157167,5.0,11.225,11.211,3.27387061]
[1672647157592,1.0,11.234,11.223,13.36]
[1672647157802,1.0,11.234,11.227,9.21131699]
[1672647158012,1.0,11.234,11.228,5.0]
[1672647159276,1.0,11.234,11.227,9.21131699]
[1672647161277,68.35,11.24,11.227,9.21131699]
[1672647162329,53.1138,11.238,11.227,9.21131699]
[1672647162538,5.0,11.237,11.227,9.21131699]
[1672647166004,53.1138,11.238,11.227,9.21131699]
[1672647166214,5.0,11.237,11.227,9.21131699]
[1672647166524,53.1138,11.238,11.228,5.0]
[1672647166732,5.0,11.237,11.228,8.26987452]
[1672647167261,5.0,11.237,11.228,5.0]
[1672647167679,53.1138,11.238,11.228,5.0]
[1672647168204,53.1138,11.238,11.229,3.26973578]
[1672647169680,52.97669941,11.238,11.229,3.26973578]
[1672647171673,52.97669941,11.238,11.228,8.26973578]
[1672647171993,52.97669941,11.238,11.229,5.0]
[1672647172194,52.97669941,11.238,11.229,8.26973578]
[1672647172625,52.97669941,11.238,11.229,5.0]
[1672647172836,18.41,11.246,11.229,5.0]
[1672647173043,18.41,11.246,11.23,3.26945001]
[1672647173671,5.0,11.245,11.23,3.26945001]
[1672647175146,5.0,11.243,11.23,3.26945001]
[1672647175676,49.3183,11.244,11.23,16.59945001]
[1672647175879,13.41,11.251,11.233,13.41]
[1672647176089,49.3183,11.252,11.238,13.41]
[1672647176299,49.3183,11.251,11.238,13.41]
[1672647176507,5.0,11.25,11.239,5.0]
[1672647177030,5.0,11.254,11.239,5.0]
[1672647177247,54.3183,11.254,11.239,5.0]
[1672647177456,54.3183,11.254,11.242,5.0]
[1672647177457,5.0,11.253,11.242,5.0]
[1672647177878,5.0,11.253,11.241,13.4]
[1672647177879,50.0,11.25,11.235,13.39]
[1672647178193,16.34296835,11.252,11.236,5.0]
[1672647178406,5.0,11.251,11.236,5.0]
[1672647178613,5.0,11.251,11.237,3.2672371]
[1672647178928,5.0,11.251,11.238,18.41]
[1672647179140,5.0,11.251,11.239,5.0]
[1672647179344,52.6471,11.252,11.239,5.0]
[1672647179771,5.0,11.251,11.239,5.0]
[1672647180084,52.6471,11.252,11.239,5.0]
[1672647180401,5.0,11.25,11.239,5.0]
[1672647181130,63.31,11.25,11.232,13.39]
[1672647181337,13.37,11.247,11.229,18.41]
[1672647181547,58.1007,11.246,11.229,18.41]
[1672647181758,58.1007,11.246,11.23,3.26896044]
[1672647181975,5.0,11.245,11.23,3.26896044]
[1672647182181,58.1007,11.245,11.23,3.26896044]
[1672647182392,58.1007,11.245,11.231,5.0]
[1672647182815,5.0,11.243,11.231,5.0]
[1672647183647,54.7544,11.243,11.231,5.0]
[1672647183867,49.7544,11.243,11.231,5.0]
[1672647184699,13.36,11.249,11.231,5.0]
[1672647184910,5.0,11.248,11.231,5.0]
[1672647185757,13.33,11.246,11.231,5.0]
[1672647185968,13.33,11.246,11.228,5.0]
[1672647186390,5.0,11.245,11.229,3.26914896]
[1672647186601,5.0,11.245,11.23,5.0]
[1672647187119,5.0,11.245,11.229,3.26914896]
[1672647187337,7.42457236,11.24,11.231,3.26914896]
[1672647187545,5.0,11.245,11.231,8.26914896]
[1672647187758,5.0,11.245,11.231,5.0]
[1672647188701,5.0,11.245,11.229,5.0]
[1672647188912,5.0,11.242,11.229,5.0]
[1672647189121,5.0,11.242,11.23,3.26920971]
[1672647189331,5.0,11.238,11.23,3.26920971]
[1672647189541,5.0,11.238,11.229,5.0]
[1672647189962,5.0,11.238,11.225,5.0]
[1672647190277,52.9117,11.239,11.225,5.0]
[1672647190488,5.0,11.238,11.225,5.0]
[1672647190699,13.25,11.236,11.225,5.0]
[1672647191012,5.0,11.235,11.219,5.0]
[1672647191221,13.28,11.234,11.219,5.0]
[1672647191434,13.28,11.234,11.22,3.27103138]
[1672647191646,5.0,11.233,11.221,5.0]
[1672647192276,5.0,11.233,11.222,3.27103138]
[1672647194166,66.1917,11.234,11.222,3.27103138]
[1672647194377,52.9117,11.234,11.222,3.27103138]
[1672647194585,52.9117,11.234,11.22,3.27103138]
[1672647195009,52.9117,11.234,11.221,5.0]
[1672647195426,52.9117,11.234,11.222,3.27103138]
[1672647195639,52.9117,11.234,11.223,5.0]
[1672647195953,52.9117,11.234,11.224,3.27103138]
[1672647196164,63.36,11.24,11.237,19.92641447]
[1672647196375,63.36,11.24,11.225,5.0]
[1672647196583,13.28,11.237,11.225,5.0]
[1672647196789,5.0,11.236,11.225,5.0]
[1672647197533,13.28,11.234,11.218,5.0]
[1672647197742,5.0,11.233,11.218,5.0]
[1672647198267,5.0,11.233,11.22,3.2712387]
[1672647199947,13.36,11.231,11.22,3.2712387]
[1672647200160,5.0,11.23,11.22,3.2712387]
[1672647200572,5.0,11.23,11.215,3.2712387]
[1672647200896,5.0,11.23,11.216,5.0]
[1672647201313,5.0,11.23,11.217,3.2712387]
[1672647201631,5.0,11.233,11.217,3.2712387]
[1672647201834,5.0,11.233,11.218,5.0]
[1672647202045,52.9078,11.234,11.218,5.0]
[1672647202260,13.41,11.236,11.219,3.2712387]
[1672647202469,52.9078,11.238,11.221,13.41]
[1672647202681,18.41,11.243,11.224,13.41]
[1672647202890,52.9078,11.242,11.225,5.0]
[1672647203207,52.9078,11.242,11.225,8.2712387]
[1672647203730,52.9078,11.242,11.226,8.2712387]
[1672647203944,52.9078,11.242,11.227,5.0]
[1672647204165,5.0,11.24,11.227,8.2712387]
[1672647204568,5.0,11.24,11.228,3.2712387]
[1672647206149,13.36,11.239,11.228,3.2712387]
[1672647206456,13.41,11.237,11.222,5.0]
[1672647206673,5.0,11.236,11.222,5.0]
[1672647206883,5.0,11.236,11.224,3.27111311]
[1672647207299,5.0,11.238,11.224,3.27111311]
[1672647207511,5.0,11.239,11.224,3.27111311]
[1672647207717,63.41,11.24,11.225,5.0]
[1672647208042,5.0,11.239,11.225,5.0]
[1672647208992,13.41,11.237,11.225,5.0]
[1672647209195,5.0,11.236,11.225,5.0]
[1672647209933,5.0,11.239,11.225,5.0]
[1672647210459,5.0,11.239,11.226,3.26947573]
[1672647210774,5.0,11.241,11.227,5.0]
[1672647211298,5.0,11.241,11.228,3.26947573]
[1672647211509,5.0,11.241,11.229,5.0]
[1672647212140,5.0,11.241,11.23,3.26947573]
[1672647213298,18.41,11.241,11.23,3.26947573]
[1672647214031,18.41,11.241,11.228,3.26947573]
[1672647214659,13.41,11.232,11.215,13.41]
[1672647214868,13.41,11.235,11.218,13.36]
[1672647215086,5.0,11.234,11.219,5.0]
[1672647215291,71.76,11.234,11.221,3.27106618]
[1672647215502,71.76,11.234,11.213,5.0]
[1672647215503,5.0,11.232,11.213,1.43731908]
[1672647215710,13.41,11.229,11.214,3.27153871]
[1672647215919,13.41,11.229,11.215,5.0]
[1672647216558,5.0,11.228,11.216,3.27153871]
[1672647217397,18.41,11.232,11.216,3.27153871]
[1672647217819,18.41,11.232,11.217,5.0]
[1672647218134,50.6491,11.233,11.217,5.0]
[1672647218340,50.6491,11.233,11.218,3.27153871]
[1672647218549,13.31,11.237,11.218,3.27153871]
[1672647218763,5.0,11.238,11.218,3.27153871]
[1672647218764,55.2559,11.238,11.223,50.0]
[1672647218975,1.8,11.24,11.224,5.0]
[1672647219500,1.8,11.24,11.224,8.27153871]
[1672647219707,68.6659,11.242,11.225,3.27153871]
[1672647219912,13.41,11.239,11.225,3.27153871]
[1672647220127,55.2559,11.242,11.225,3.27153871]
[1672647220128,5.0,11.235,11.225,3.27153871]
[1672647220545,5.0,11.235,11.224,5.0]
[1672647221078,5.0,11.239,11.224,5.0]
[1672647221603,5.0,11.239,11.226,5.0]
[1672647222016,5.0,11.239,11.227,3.26921217]
[1672647222553,13.36,11.24,11.227,3.26921217]
[1672647222865,55.2559,11.242,11.227,3.26921217]
[1672647227061,13.41,11.243,11.227,3.26921217]
[1672647227272,13.41,11.246,11.228,5.0]
[1672647227480,5.0,11.245,11.228,5.0]
[1672647227694,5.0,11.245,11.229,3.26921217]
[1672647227904,5.0,11.245,11.23,5.0]
[1672647228321,4.77382938,11.245,11.23,5.0]
[1672647228535,4.77382938,11.245,11.231,3.26921217]
[1672647229904,4.77382938,11.245,11.229,3.26921217]
[1672647230108,5.0,11.241,11.229,3.26921217]
[1672647231162,5.0,11.244,11.229,3.26921217]
[1672647233785,13.41,11.242,11.229,3.26921217]
[1672647234001,5.0,11.241,11.229,3.26921217]
[1672647234426,5.0,11.241,11.227,3.26921217]
[1672647235473,13.41,11.242,11.227,3.26921217]
[1672647235790,4.77382938,11.245,11.228,5.0]
[1672647236000,48.969,11.244,11.228,5.0]
[1672647236313,13.41,11.242,11.229,3.26921217]
[1672647236522,5.0,11.241,11.229,3.26921217]
[1672647237049,13.41,11.24,11.229,3.26921217]
[1672647237364,5.0,11.239,11.229,3.26921217]
[1672647237573,5.0,11.239,11.225,5.0]
[1672647238414,5.0,11.239,11.224,5.0]
[1672647238836,5.0,11.236,11.225,3.27090916]
[1672647239256,5.0,11.236,11.221,3.27090916]
[1672647239468,13.36,11.234,11.221,3.27090916]
[1672647239782,13.36,11.234,11.219,3.27090916]
[1672647239992,5.0,11.233,11.22,5.0]
[1672647240624,18.41,11.235,11.221,3.27090916]
[1672647240941,5.0,11.232,11.221,3.27090916]
[1672647243356,5.0,11.232,11.219,3.27090916]
[1672647243567,4.89702428,11.232,11.219,3.27090916]
[1672647244198,13.41,11.23,11.219,3.27090916]
[1672647244407,5.0,11.229,11.219,3.27090916]
[1672647244928,5.0,11.229,11.215,5.0]
[1672647245350,5.0,11.229,11.214,5.0]
[1672647245561,5.0,11.229,11.216,3.27301995]
[1672647245770,13.41,11.227,11.216,3.27301995]
[1672647245986,13.41,11.227,11.215,3.27301995]
[1672647246188,13.41,11.221,11.215,3.27301995]
[1672647246612,5.0,11.22,11.203,51.3285]
[1672647246929,5.0,11.22,11.211,3.27341713]
[1672647247139,13.41,11.221,11.211,3.27341713]
[1672647247352,13.41,11.224,11.211,3.27341713]
[1672647247560,5.0,11.223,11.211,3.27341713]
[1672647247873,13.41,11.221,11.211,3.27341713]
[1672647248191,6.2,11.223,11.208,5.0]
[1672647248192,13.41,11.215,11.208,5.0]
[1672647248402,13.41,11.221,11.22,83.22137141]
[1672647248821,13.41,11.221,11.22,33.22137141]
[1672647249035,5.0,11.22,11.215,14.3745496]
[1672647251345,5.0,11.221,11.215,14.3745496]
[1672647251558,5.0,11.225,11.215,14.3745496]
[1672647251771,18.41,11.227,11.222,18.79475708]
[1672647252187,13.41,11.227,11.222,18.79475708]
[1672647252612,5.0,11.226,11.215,14.3745496]
[1672647253031,5.0,11.226,11.216,3.27332766]
[1672647253243,5.0,11.226,11.217,5.0]
[1672647253665,5.0,11.226,11.216,3.27332766]
[1672647253875,5.0,11.226,11.215,14.3745496]
[1672647254498,5.0,11.226,11.216,3.27338424]
[1672647254926,5.0,11.226,11.215,14.3745496]
[1672647257024,5.0,11.226,11.216,3.27330956]
[1672647257234,5.0,11.226,11.217,5.0]
[1672647257760,5.0,11.226,11.215,14.3745496]
[1672647257970,13.36,11.224,11.215,14.3745496]
[1672647258181,5.0,11.223,11.215,14.3745496]
[1672647258708,13.36,11.224,11.223,0.06968329]
[1672647259126,5.0,11.223,11.215,14.3745496]
[1672647260177,5.0,11.228,11.215,14.3745496]
[1672647260178,13.41,11.23,11.223,4.8618159]
[1672647260387,5.0,11.229,11.223,4.8618159]
[1672647260698,13.36,11.226,11.223,4.8618159]
[1672647260907,13.36,11.226,11.216,5.0]
[1672647261127,5.0,11.225,11.215,14.3745496]
[1672647265636,55.0,11.231,11.215,14.3745496]
[1672647265637,55.0,11.231,11.23,3.3715487]
[1672647265845,5.0,11.231,11.225,4.76672837]
[1672647266057,54.3774,11.235,11.225,4.76672837]
[1672647266265,5.0,11.235,11.225,4.76672837]
[1672647266475,18.32,11.237,11.225,4.76672837]
[1672647266691,5.0,11.237,11.225,4.76672837]
[1672647267105,13.41,11.234,11.225,4.76672837]
[1672647267319,5.0,11.233,11.216,55.2833]
[1672647267531,55.1205,11.233,11.216,55.2833]
[1672647267952,55.1205,11.233,11.217,3.27164981]
[1672647268261,55.1205,11.233,11.218,5.0]
[1672647268788,55.1205,11.233,11.219,3.27164981]
[1672647269000,55.1205,11.233,11.22,5.0]
[1672647269741,63.41,11.231,11.221,3.27164981]
[1672647269953,5.0,11.23,11.221,3.27164981]
[1672647270159,5.0,11.23,11.217,5.0]
[1672647271107,5.0,11.23,11.216,55.2833]
[1672647271311,5.0,11.237,11.217,18.36]
[1672647271522,55.4145,11.236,11.217,21.63190178]
[1672647271736,55.4145,11.236,11.218,5.0]
[1672647272045,55.4145,11.236,11.22,5.0]
[1672647272372,55.4145,11.236,11.221,3.27190178]
[1672647272577,55.4145,11.236,11.222,5.0]
[1672647273522,50.4145,11.236,11.222,5.0]
[1672647274150,68.36,11.241,11.223,13.36]
[1672647274358,118.9217,11.241,11.224,5.0]
[1672647274779,118.9217,11.241,11.224,57.1357]
[1672647274994,105.5617,11.241,11.226,13.41]
[1672647275419,105.5617,11.241,11.227,5.0]
[1672647276461,118.9717,11.241,11.224,57.1357]
[1672647276677,5.0,11.24,11.225,5.0]
[1672647278780,50.0,11.241,11.225,18.41]
[1672647279619,5.0,11.24,11.225,18.41]
[1672647280566,4.81580974,11.24,11.226,5.0]
[1672647280987,13.41,11.251,11.233,13.41]
[1672647281197,5.0,11.25,11.234,57.8292]
[1672647281408,5.0,11.25,11.235,5.0]
[1672647281722,5.0,11.248,11.237,5.0]
[1672647282457,5.0,11.25,11.237,5.0]
[1672647282670,5.0,11.253,11.239,13.36]
[1672647282874,5.0,11.253,11.24,5.0]
[1672647283716,5.0,11.256,11.24,5.0]
[1672647283928,5.0,11.256,11.242,13.36]
[1672647284348,5.0,11.256,11.243,5.0]
[1672647284767,5.0,11.256,11.242,13.36]
[1672647285083,5.0,11.256,11.24,56.2134]
[1672647285297,50.0,11.251,11.24,56.2134]
[1672647285503,50.0,11.251,11.24,51.2134]
[1672647285707,50.0,11.251,11.234,5.0]
[1672647285708,5.0,11.25,11.234,5.0]
[1672647286023,13.41,11.249,11.234,5.0]
[1672647286234,5.0,11.248,11.234,5.0]
[1672647286449,13.41,11.249,11.234,5.0]
[1672647286657,5.0,11.253,11.234,5.0]
[1672647286658,13.41,11.252,11.234,5.0]
[1672647286864,5.0,11.25,11.235,52.51]
[1672647287073,5.0,11.25,11.236,18.41]
[1672647287498,5.0,11.253,11.237,5.0]
[1672647287922,5.0,11.253,11.238,3.26702782]
[1672647288133,5.0,11.253,11.239,5.0]
[1672647289279,5.0,11.253,11.237,5.0]
[1672647289705,5.0,11.253,11.238,3.26705215]
[1672647290126,63.41,11.252,11.238,3.26705215]
[1672647290337,5.0,11.251,11.236,5.0]
[1672647290748,16.34265342,11.25,11.236,5.0]
[1672647290965,6.77288144,11.25,11.236,5.0]
[1672647291175,5.0,11.249,11.236,5.0]
[1672647292650,116.1745,11.252,11.236,5.0]
[1672647292856,5.0,11.251,11.236,5.0]
[1672647293066,21.34308274,11.251,11.236,5.0]
[1672647293273,5.0,11.25,11.236,5.0]
[1672647293486,16.92327165,11.25,11.236,5.0]
[1672647293904,16.34308274,11.25,11.236,5.0]
[1672647294327,16.34308274,11.251,11.236,5.0]
[1672647294539,5.0,11.25,11.236,5.0]
[1672647294749,16.34308274,11.251,11.236,5.0]
[1672647294956,5.0,11.249,11.238,5.0]
[1672647295163,13.41,11.248,11.238,5.0]
[1672647295376,5.0,11.247,11.237,3.26672403]
[1672647295586,0.68641888,11.247,11.239,5.0]
[1672647295801,5.68641888,11.247,11.239,5.0]
[1672647296534,5.68641888,11.247,11.236,5.0]
[1672647296850,13.41,11.246,11.229,13.41]
[1672647297061,5.0,11.245,11.233,5.0]
[1672647297588,12.3148284,11.247,11.228,3411.980685]
[1672647297798,13.41,11.24,11.223,3425.390685]
[1672647298009,5.0,11.239,11.224,54.0552]
[1672647298219,13.41,11.237,11.224,54.0552]
[1672647298430,5.0,11.236,11.225,8.27057203]
[1672647298744,5.0,11.236,11.225,5.0]
[1672647298949,5.0,11.239,11.226,5.0]
[1672647299163,13.39,11.241,11.226,5.0]
[1672647299377,5.0,11.239,11.226,5.0]
[1672647299581,5.0,11.241,11.226,5.0]
[1672647299792,13.39,11.24,11.226,5.0]
[1672647299998,5.0,11.239,11.226,5.0]
[1672647300846,13.28,11.234,11.225,37.22564672]
[1672647301789,2.86209092,11.234,11.226,5.0]
[1672647302002,2.86209092,11.234,11.225,37.22564672]
[1672647302625,13.29,11.237,11.226,5.0]
[1672647303679,2.98674444,11.237,11.226,5.0]
[1672647304312,17.77435328,11.253,11.226,5.0]
[1672647304313,18.39,11.246,11.239,6.49280739]
[1672647304629,5.0,11.245,11.23,5.0]
[1672647304840,5.0,11.245,11.23,57.2982]
[1672647305043,5.0,11.245,11.231,3.26885899]
[1672647305252,5.0,11.245,11.232,5.0]
[1672647305677,1.18165493,11.245,11.232,5.0]
[1672647306206,13.39,11.246,11.232,5.0]
[1672647307255,13.39,11.246,11.235,37.22564672]
[1672647307467,13.39,11.246,11.236,5.0]
[1672647308623,13.39,11.246,11.235,37.22564672]
[1672647309465,26.09435328,11.243,11.23,5.0]
[1672647309779,5.0,11.242,11.229,5.0]
[1672647310725,26.09435328,11.243,11.229,5.0]
[1672647311145,1.7,11.246,11.23,13.37]
[1672647311357,1.7,11.246,11.231,5.0]
[1672647312509,1.7,11.246,11.232,13.26]
[1672647312720,18.4,11.257,11.246,1.26435119]
[1672647313877,12.77435328,11.253,11.246,1.26435119]
[1672647314086,5.0,11.252,11.246,1.26435119]
[1672647314295,5.0,11.252,11.239,5.0]
[1672647314498,16.34210614,11.251,11.239,5.0]
[1672647314722,5.0,11.25,11.239,5.0]
[1672647315447,5.0,11.25,11.238,52.8571]
[1672647315975,5.0,11.252,11.239,5.0]
[1672647316179,12.77435328,11.253,11.239,5.0]
[1672647316709,16.34285567,11.252,11.239,5.0]
[1672647316921,5.0,11.251,11.239,5.0]
[1672647317759,5.0,11.253,11.239,5.0]
[1672647318601,16.34252197,11.252,11.239,5.0]
[1672647318812,5.0,11.251,11.239,5.0]
[1672647319023,5.0,11.251,11.236,18.39]
[1672647319439,13.32,11.248,11.235,37.22564672]
[1672647319858,5.0,11.247,11.235,37.22564672]
[1672647320383,18.39,11.251,11.236,5.0]
[1672647320905,5.0,11.251,11.236,5.0]
[1672647321434,1.6,11.25,11.235,37.22564672]
[1672647321856,1.6,11.25,11.236,5.0]
[1672647323960,13.26,11.247,11.232,5.0]
[1672647324271,5.0,11.246,11.232,5.0]
[1672647324694,13.26,11.247,11.232,5.0]
[1672647325009,5.0,11.248,11.236,5.0]
[1672647325216,14.46,11.25,11.236,5.0]
[1672647325536,1.2,11.25,11.236,18.36]
[1672647325737,1.2,11.25,11.236,5.0]
[1672647325947,6.2,11.25,11.236,5.0]
[1672647326900,1.2,11.25,11.236,5.0]
[1672647327949,1.2,11.25,11.236,18.36]
[1672647328159,1.2,11.25,11.237,50.9402]
[1672647328370,54.2643,11.253,11.238,5.0]
[1672647328581,54.2643,11.253,11.238,55.9402]
[1672647328788,5.0,11.262,11.238,55.9402]
[1672647328789,13.24,11.261,11.242,13.35]
[1672647329006,5.0,11.26,11.245,13.27]
[1672647329315,16.33261651,11.259,11.244,5.0]
[1672647329735,5.0,11.258,11.244,5.0]
[1672647330789,586.0,11.306,11.257,50.58564672]
[1672647330994,12.77435328,11.294,11.258,66.62]
[1672647331206,114.07801902,11.305,11.265,37.22564672]
[1672647331421,114.07801902,11.305,11.285,37.22564672]
[1672647331630,66.24,11.323,11.286,66.45]
[1672647331839,0.00801902,11.325,11.321,13.21]
[1672647332045,0.00801902,11.325,11.315,13.1]
[1672647332046,13.23,11.366,11.329,0.06]
[1672647332254,13.29,11.385,11.344,50.0]
[1672647332462,13.29,11.385,11.329,0.12]
[1672647332463,113.38847383,11.365,11.329,0.12]
[1672647332891,13.12,11.346,11.286,18.13]
[1672647333102,132.2,11.326,11.273,50.0]
[1672647333412,71.23,11.325,11.295,50.0]
[1672647333632,16.1983534,11.345,11.327,49.6140856]
[1672647333831,13.13,11.33,11.309,13.22]
[1672647334046,52.88,11.336,11.298,13.13]
[1672647334047,13.22,11.319,11.298,13.13]
[1672647334257,5.0,11.318,11.299,5.0]